fUST/lending_fUST_20241027
["ID","MTS","AMOUNT","RATE_DAILY","PERIOD"]
[340877419,1729991432872,-500.0,0.00037114,15]
[340877421,1729991432882,-500.0,0.00037114,15]
[340877423,1729991432891,-500.0,0.00037114,15]
[340877426,1729991432901,-500.0,0.00037114,15]
[340877428,1729991432910,-500.0,0.00037114,15]
[340877430,1729991432919,-500.0,0.00037114,15]
[340877432,1729991432929,-500.0,0.00037114,15]
[340877434,1729991432938,-500.0,0.00037114,15]
[340877436,1729991432949,-500.0,0.00037114,15]
[340877438,1729991432959,-500.0,0.00037114,15]
[340877440,1729991432973,-500.0,0.00037114,15]
[340877443,1729991432984,-500.0,0.00037114,15]
[340877445,1729991432994,-440.0,0.00037114,15]
[340877446,1729991433003,-500.0,0.00037114,15]
[340877449,1729991433014,-500.0,0.00037114,15]
[340877451,1729991433026,-500.0,0.00037114,15]
[340877453,1729991433035,-500.0,0.00037114,15]
[340877455,1729991433045,-500.0,0.00037114,15]
[340877457,1729991433055,-500.0,0.00037114,15]
[340877459,1729991433065,-500.0,0.00037114,15]
[340877460,1729991433075,-500.0,0.00037114,15]
[340877461,1729991433085,-500.0,0.00037114,15]
[340877462,1729991433095,-499.99999999,0.00037114,15]
[340877463,1729991433105,-151.33082,0.00037114,14]
[340877464,1729991433114,-151.0,0.00037114,14]
[340877465,1729991433124,-151.0,0.00037114,14]
[340877466,1729991433134,-158.607473,0.00037114,14]
[340877467,1729991433143,-151.0,0.00037114,14]
[340877468,1729991433153,-151.0,0.00037114,14]
[340877469,1729991433163,-151.0,0.00037114,14]
[340877470,1729991433172,-151.0,0.00037114,14]
[340877471,1729991433182,-151.0,0.00037114,14]
[340877472,1729991433192,-152.002749,0.00037114,14]
[340877473,1729991433201,-90551.7005707,0.00037115,5]
[340877474,1729991433212,-158336.66544275,0.00037115,5]
[340877481,1729991438296,-827.75,0.00037105,10]
[340877482,1729991438306,-79509.76022633,0.00037115,5]
[340877483,1729991438414,-121768.58032219,0.00037115,5]
[340877515,1729991515183,170.006154,0.00013973,2]
[340877516,1729991985462,5000.0,0.00016,2]
[340877517,1729992043371,5000.0,0.00016,2]
[340877629,1729992638837,-1336.16898737,0.00025852,2]
[340877630,1729992638848,-761.4898,0.00031971,30]
[340877631,1729992638858,-550.47303868,0.00033328,2]
[340877632,1729992638871,-14.28598902,0.00033328,2]
[340877633,1729992638880,-458.5252034,0.00033923,2]
[340877634,1729992638891,-151.0,0.00033926,2]
[340877635,1729992638903,-1644.9312004,0.00033937,64]
[340877636,1729992638912,-300.0,0.00033999,2]
[340877637,1729992638924,-400.0,0.00033999,2]
[340877638,1729992638935,-1144.24399929,0.00034,5]
[340877639,1729992638948,-2728.69600071,0.00034,5]
[340877640,1729992638957,-2000.0,0.00034971,30]
[340877641,1729992638967,-521.91,0.00035,10]
[340877642,1729992638978,-500.0,0.00035,10]
[340877643,1729992638990,-500.0,0.00035,10]
[340877644,1729992639001,-2000.0,0.00035,10]
[340877645,1729992639011,-5000.0,0.00035,30]
[340877646,1729992639020,-1333.65341015,0.00035433,7]
[340877647,1729992639031,-2000.0,0.00035607,30]
[340877648,1729992639043,-200.0,0.00035611,14]
[340877649,1729992639053,-2000.0,0.00036,7]
[340877650,1729992639063,-666.56570843,0.00036888,2]
[340877651,1729992639075,-751.24784231,0.00037,2]
[340877652,1729992639089,-1148.725005,0.00037,2]
[340877653,1729992639103,-100.02715269,0.00037,2]
[340877654,1729992639113,-500.0,0.00037,120]
[340877655,1729992639124,-489.42884851,0.00037,120]
[340877656,1729992639139,-10.57115149,0.00037,120]
[340877657,1729992639149,-1069.66884816,0.00037015,2]
[340877747,1729992643567,-1268.90504794,0.00037015,2]
[340877748,1729992643577,-490.92187627,0.00037015,14]
[340877749,1729992643587,-204.87,0.00037105,10]
[340877750,1729992643597,-159.69459507,0.00037114,15]
[340877751,1729992643607,-500.0,0.00037114,15]
[340877752,1729992643620,-500.0,0.00037114,15]
[340877753,1729992643630,-250.0,0.00037114,15]
[340877754,1729992643641,-500.0,0.00037114,15]
[340877755,1729992643651,-247.8532002,0.00037114,15]
[340877756,1729992643662,-645.6402129,0.00037114,15]
[340877757,1729992643672,-999.0,0.00037114,120]
[340877758,1729992643683,-500.0,0.00037114,2]
[340877760,1729992643693,-10366.10767038,0.00037115,5]
[340877764,1729992646662,-6744.21816024,0.00037115,5]
[340877768,1729993078664,10000.0,0.00035612,30]
[340877769,1729993106557,10000.0,0.00035615,30]
[340877770,1729993128228,10000.0,0.00035615,30]
[340877771,1729993137736,10000.0,0.00035615,30]
[340877772,1729993146975,10000.0,0.00035615,30]
[340877825,1729993840816,-174.2232474,0.00030251,30]
[340877827,1729993840827,-355.46651151,0.00032,2]
[340877830,1729993841009,-3126.87293045,0.00032,2]
[340877831,1729993841019,-479.0,0.00033666,120]
[340877832,1729993841030,-168.5462352,0.00034399,2]
[340877833,1729993841040,-1333.70677123,0.00034728,7]
[340877834,1729993841284,-309.0,0.00035413,2]
[340877835,1729993841294,-229.0,0.00035413,2]
[340877836,1729993841304,-4117.50279337,0.00035414,60]
[340877837,1729993841314,-5134.073,0.0003545,35]
[340877838,1729993841323,-327.28125084,0.00035615,14]
[340877839,1729993841333,-327.28125084,0.00035615,14]
[340877840,1729993841342,-200.0,0.00035615,14]
[340877841,1729993841352,-1333.70677123,0.00036812,7]
[340877842,1729993841362,-2052.06902164,0.00037005,2]
[340877843,1729993841373,-220.25583761,0.00037015,2]
[340877844,1729993841383,-171.084,0.00037094,47]
[340877845,1729993841393,-641.39224252,0.00037094,2]
[340877846,1729993841402,-401.66,0.00037095,3]
[340877847,1729993841412,-276.31,0.00037095,3]
[340877848,1729993841422,-250.07204864,0.00037104,15]
[340877849,1729993841432,-8356.14584643,0.00037105,5]
[340877859,1729993843787,-961.5,0.00037105,5]
[340877862,1729993844030,-13294.43006823,0.00037105,5]
[340877865,1729993846773,-3638.93585627,0.00037105,5]
[340877922,1729995043092,-468.60034441,0.0003348,2]
[340877923,1729995043102,-1212.46070112,0.00034023,3]
[340877924,1729995043112,-181.6627861,0.00034154,2]
[340877925,1729995043121,-178.30717268,0.00035615,14]
[340877926,1729995043131,-178.30717268,0.00035615,14]
[340877927,1729995043140,-300.0,0.00035617,2]
[340877928,1729995043149,-300.0,0.00035617,2]
[340877929,1729995043161,-164.0,0.00035618,30]
[340877930,1729995043171,-3853.70006369,0.00035618,30]
[340877931,1729995043180,-200.0,0.00035618,14]
[340877932,1729995043190,-1333.70677123,0.00036064,7]
[340877933,1729995043200,-10716.76990969,0.00036624,2]
[340877934,1729995043209,-1795.56039397,0.0003697,2]
[340877935,1729995043219,-1000.0,0.00036999,60]
[340877936,1729995043228,-1000.0,0.00036999,62]
[340877937,1729995043237,-1000.0,0.00036999,64]
[340877938,1729995043247,-1000.0,0.00036999,66]
[340877939,1729995043259,-35.31334616,0.00036999,68]
[340877957,1729995217013,2000.0,0.00035621,30]
[340877958,1729995545075,172.973671,0.00013973,2]
[340877959,1729995784752,5000.0,0.00035621,30]
[340877964,1729996079684,2577.32530685,0.00035622,30]
[340877966,1729996093122,822.45005998,0.00035622,32]
[340877971,1729996114755,267.10946942,0.00035628,30]
[340877972,1729996120932,970.86132451,0.00035628,60]
[340877973,1729996121685,282.47279444,0.00035628,30]
[340877975,1729996123104,495.2278458,0.00035628,120]
[340877976,1729996125212,159.33224391,0.00035628,30]
[340877979,1729996129330,1040.07068457,0.00035628,120]
[340878024,1729996243214,-279.0,0.00025,2]
[340878025,1729996243224,-152.7,0.000266,31]
[340878026,1729996243234,-152.7,0.000266,31]
[340878027,1729996243244,-168.0,0.00027,2]
[340878028,1729996243253,-204.24809634,0.00027397,2]
[340878029,1729996243263,-172.973671,0.00027641,2]
[340878030,1729996243272,-155.26669883,0.00028,120]
[340878031,1729996243282,-168.0,0.00028767,2]
[340878032,1729996243292,-1228.19343214,0.00029041,120]
[340878033,1729996243303,-152.7,0.000295,31]
[340878034,1729996243313,-152.7,0.000295,31]
[340878035,1729996243324,-152.7,0.000295,31]
[340878036,1729996243333,-152.7,0.000295,31]
[340878037,1729996243343,-300.0,0.00029999,2]
[340878038,1729996243352,-200.0,0.00029999,30]
[340878039,1729996243362,-170.0,0.00030205,2]
[340878040,1729996243373,-224.76220763,0.00030685,2]
[340878041,1729996243382,-166.666666,0.00031208,2]
[340878042,1729996243392,-317.44639146,0.00031462,2]
[340878043,1729996243403,-2390.67623674,0.00031462,2]
[340878044,1729996243413,-660.0,0.00031485,2]
[340878045,1729996243423,-380.0,0.00031771,2]
[340878046,1729996243432,-165.5450495,0.00031959,2]
[340878047,1729996243442,-166.098234,0.00031985,2]
[340878048,1729996243452,-166.666666,0.00032059,2]
[340878049,1729996243465,-166.098234,0.00032263,2]
[340878050,1729996243475,-420.0,0.00032332,2]
[340878051,1729996243487,-152.7,0.000324,31]
[340878052,1729996243499,-152.7,0.000324,31]
[340878053,1729996243511,-83.10074076,0.000324,31]
[340878054,1729996243523,-69.59925924,0.000324,31]
[340878055,1729996243533,-152.7,0.000324,31]
[340878056,1729996243544,-166.098234,0.00032541,2]
[340878057,1729996243553,-166.098234,0.00032818,2]
[340878058,1729996243563,-166.666666,0.0003291,2]
[340878059,1729996243572,-1212.46070112,0.00032963,3]
[340878060,1729996243582,-166.098234,0.00033096,2]
[340878061,1729996243592,-168.0,0.00033226,2]
[340878062,1729996243602,-166.098234,0.00033374,2]
[340878063,1729996243611,-166.098234,0.00033652,2]
[340878064,1729996243624,-166.666666,0.00033761,2]
[340878065,1729996243635,-166.666666,0.00034612,2]
[340878066,1729996243645,-587.0,0.00034847,2]
[340878067,1729996243658,-938.68582958,0.00034941,7]
[340878068,1729996243668,-500.0,0.00035,120]
[340878069,1729996243678,-152.7,0.000353,31]
[340878070,1729996243687,-152.7,0.000353,31]
[340878071,1729996243697,-152.7,0.000353,31]
[340878072,1729996243707,-152.7,0.000353,31]
[340878073,1729996243716,-166.666666,0.00035462,2]
[340878074,1729996243725,-230.0,0.000355,34]
[340878075,1729996243734,-999.0,0.00035621,30]
[340878076,1729996243744,-200.0,0.00035628,14]
[340878077,1729996243753,-168.23864325,0.00035628,14]
[340878078,1729996243762,-1645.2385584,0.00036195,2]
[340878079,1729996243771,-168.0,0.00036247,2]
[340878080,1729996243780,-153.60521136,0.00036433,17]
[340878081,1729996243790,-1645.2385584,0.00036695,2]
[340878082,1729996243801,-1000.0,0.00036899,60]
[340878083,1729996243810,-1000.0,0.00036899,61]
[340878084,1729996243820,-1000.0,0.00036899,62]
[340878085,1729996243829,-1000.0,0.00036899,63]
[340878086,1729996243839,-1000.0,0.00036899,64]
[340878087,1729996243848,-1000.0,0.00036899,65]
[340878088,1729996243858,-286.2759222,0.00036899,66]
[340878106,1729996645596,172.973671,0.00013973,2]
[340878162,1729997438440,-2002.9202117,0.0003131,2]
[340878163,1729997438452,-3000.0,0.00031438,2]
[340878164,1729997438462,-167.780879,0.00031455,2]
[340878165,1729997438473,-636.4002231,0.0003152,2]
[340878166,1729997438484,-250.0,0.00031538,2]
[340878167,1729997438494,-172.973671,0.00031546,2]
[340878168,1729997438504,-2036.8248534,0.00031591,64]
[340878169,1729997438516,-400.0,0.00033513,2]
[340878170,1729997438527,-400.0,0.00033513,2]
[340878171,1729997438539,-465.27985644,0.00033517,2]
[340878172,1729997438548,-167.780879,0.00033599,2]
[340878173,1729997438557,-186.46960482,0.00034439,2]
[340878174,1729997438567,-24900.0,0.00034539,2]
[340878175,1729997438576,-291.25696995,0.00034539,7]
[340878176,1729997438585,-526.9151546,0.00034597,2]
[340878177,1729997438596,-3509.1161332,0.0003465,2]
[340878178,1729997438606,-310.431297,0.00035151,2]
[340878179,1729997438616,-740.86984446,0.0003546,7]
[340878180,1729997438627,-151.490324,0.0003546,14]
[340878181,1729997438637,-151.0,0.0003546,14]
[340878182,1729997438648,-152.859338,0.0003546,14]
[340878183,1729997438658,-196.298113,0.0003546,14]
[340878184,1729997438668,-196.298113,0.0003546,14]
[340878185,1729997438679,-291.760058,0.0003546,14]
[340878186,1729997438689,-291.760058,0.0003546,14]
[340878187,1729997438699,-164.0,0.00035639,30]
[340878188,1729997438709,-299.76,0.00035669,14]
[340878189,1729997438718,-167.780879,0.00035743,2]
[340878190,1729997438730,-560.0,0.00035989,2]
[340878191,1729997438740,-500.0,0.00036,120]
[340878192,1729997438750,-153.0,0.00036055,2]
[340878193,1729997438760,-153.0,0.00036055,2]
[340878194,1729997438769,-153.0,0.00036055,2]
[340878195,1729997438779,-153.0,0.00036055,2]
[340878196,1729997438788,-153.0,0.00036055,2]
[340878197,1729997438798,-152.192151,0.00036055,14]
[340878198,1729997438808,-196.298113,0.00036055,14]
[340878199,1729997438818,-196.298113,0.00036055,14]
[340878200,1729997438827,-291.760058,0.00036055,14]
[340878201,1729997438837,-291.760058,0.00036055,14]
[340878202,1729997438848,-151.0,0.00036195,14]
[340878203,1729997438858,-151.0,0.00036195,14]
[340878204,1729997438867,-151.0,0.00036195,14]
[340878205,1729997438877,-162.627899,0.00036195,14]
[340878206,1729997438887,-151.0,0.00036195,14]
[340878207,1729997438896,-631.180763,0.00036195,14]
[340878208,1729997438906,-631.180763,0.00036195,14]
[340878209,1729997438917,-151.0,0.00036195,14]
[340878210,1729997438927,-152.193893,0.00036195,14]
[340878211,1729997438936,-151.0,0.00036195,14]
[340878212,1729997438946,-151.0,0.00036195,14]
[340878213,1729997438957,-210.310392,0.00036195,14]
[340878214,1729997438968,-151.0,0.00036195,14]
[340878215,1729997438978,-210.310392,0.00036195,14]
[340878216,1729997438987,-151.0,0.00036195,14]
[340878217,1729997438997,-151.0,0.00036195,14]
[340878218,1729997439007,-584.801083,0.00036195,14]
[340878219,1729997439017,-584.801083,0.00036195,14]
[340878220,1729997439026,-151.0,0.00036195,14]
[340878221,1729997439036,-151.0,0.00036195,14]
[340878222,1729997439046,-987.143135,0.00036195,2]
[340878223,1729997439056,-151.0,0.00036195,14]
[340878224,1729997439066,-289.739967,0.00036195,14]
[340878225,1729997439076,-196.298113,0.00036195,14]
[340878226,1729997439088,-196.298113,0.00036195,14]
[340878227,1729997439099,-291.760058,0.00036195,14]
[340878228,1729997439109,-291.760058,0.00036195,14]
[340878229,1729997439119,-3444.16641068,0.00036267,2]
[340878230,1729997439132,-499.77566816,0.00036267,2]
[340878231,1729997439159,-843.00774782,0.00036267,2]
[340878232,1729997439168,-151.0,0.00036304,14]
[340878233,1729997439177,-151.0,0.00036304,14]
[340878234,1729997439187,-162.784755,0.00036304,14]
[340878235,1729997439196,-151.0,0.00036304,14]
[340878236,1729997439206,-151.0,0.00036304,14]
[340878237,1729997439215,-584.801083,0.00036304,14]
[340878238,1729997439408,-584.801083,0.00036304,14]
[340878239,1729997439419,-151.0,0.00036304,14]
[340878240,1729997439430,-151.0,0.00036304,14]
[340878241,1729997439439,-7.21549887,0.00036304,14]
[340878248,1729997440521,-269.223718,0.0003546,14]
[340878249,1729997440530,-143.78450113,0.00036304,14]
[340878251,1729997440540,-196.298113,0.00036304,14]
[340878253,1729997440550,-196.298113,0.00036304,14]
[340878255,1729997440560,-291.760058,0.00036304,14]
[340878257,1729997440569,-291.760058,0.00036304,14]
[340878259,1729997440579,-151.0,0.00036384,14]
[340878261,1729997440588,-3019.695235,0.00036384,90]
[340878263,1729997440598,-151.0,0.00036384,14]
[340878265,1729997440607,-151.0,0.00036384,14]
[340878266,1729997440616,-151.0,0.00036384,14]
[340878268,1729997440628,-631.180763,0.00036384,14]
[340878269,1729997440638,-631.180763,0.00036384,14]
[340878270,1729997440647,-151.0,0.00036384,14]
[340878271,1729997440656,-151.0,0.00036384,14]
[340878272,1729997440665,-210.310392,0.00036384,14]
[340878273,1729997440675,-210.310392,0.00036384,14]
[340878274,1729997440685,-191.783028,0.00036384,14]
[340878275,1729997440695,-151.0,0.00036384,14]
[340878276,1729997440704,-584.801083,0.00036384,14]
[340878277,1729997440713,-584.801083,0.00036384,14]
[340878278,1729997440723,-151.0,0.00036384,14]
[340878279,1729997440732,-255.902757,0.00036384,14]
[340878280,1729997440742,-151.0,0.00036384,14]
[340878281,1729997440751,-196.298113,0.00036384,14]
[340878282,1729997440760,-196.298113,0.00036384,14]
[340878283,1729997440769,-291.760058,0.00036384,14]
[340878284,1729997440779,-291.760058,0.00036384,14]
[340878285,1729997440789,-153.60521136,0.00036433,17]
[340878286,1729997440798,-500.0,0.000365,120]
[340878287,1729997440808,-456.71,0.00036672,3]
[340878288,1729997440817,-228.36,0.00036672,3]
[340878289,1729997440827,-685.1,0.00036672,3]
[340878290,1729997440837,-811.34,0.00036672,10]
[340878291,1729997440847,-344.860075,0.00036681,15]
[340878292,1729997440858,-500.0,0.00036681,15]
[340878293,1729997440867,-500.0,0.00036681,15]
[340878294,1729997440877,-500.0,0.00036681,15]
[340878295,1729997440886,-500.0,0.00036681,15]
[340878296,1729997440896,-500.0,0.00036681,15]
[340878297,1729997440906,-500.0,0.00036681,15]
[340878298,1729997440915,-500.0,0.00036681,15]
[340878299,1729997440925,-500.0,0.00036681,15]
[340878300,1729997440935,-500.0,0.00036681,15]
[340878301,1729997440945,-500.0,0.00036681,15]
[340878302,1729997440955,-500.0,0.00036681,15]
[340878303,1729997440965,-500.0,0.00036681,15]
[340878304,1729997440974,-500.0,0.00036681,15]
[340878305,1729997440985,-500.0,0.00036681,15]
[340878306,1729997440996,-487.38704422,0.00036681,15]
[340878307,1729997441005,-500.0,0.00036681,15]
[340878308,1729997441016,-500.0,0.00036681,15]
[340878309,1729997441026,-500.0,0.00036681,15]
[340878310,1729997441036,-500.0,0.00036681,15]
[340878311,1729997441045,-500.0,0.00036681,15]
[340878312,1729997441054,-500.0,0.00036681,15]
[340878313,1729997441063,-241.22601181,0.00036681,15]
[340878314,1729997441072,-500.0,0.00036681,15]
[340878315,1729997441084,-500.0,0.00036681,15]
[340878316,1729997441094,-913.42,0.00036682,3]
[340878317,1729997441103,-50745.7057459,0.00036682,5]
[340878318,1729997441112,-244286.683954,0.00036682,5]
[340878319,1729997441121,-39244.00873476,0.00036692,2]
[340878320,1729997441135,-17299.31697437,0.00036692,2]
[340878321,1729997441159,-53284.85254136,0.00036692,2]
[340878322,1729997441173,-302.8671087,0.00036692,2]
[340878326,1729997443562,-269.223718,0.00036055,14]
[340878327,1729997443573,-269.223718,0.00036195,14]
[340878328,1729997443583,-269.223718,0.00036304,14]
[340878329,1729997443593,-269.223718,0.00036384,14]
[340878330,1729997443606,-8580.35319837,0.00036692,2]
[340878356,1729997703329,172.973671,0.00013973,2]
[340878358,1729998314718,3853.70006369,0.00016,2]
[340878422,1729998638926,-2427.26281757,0.00018838,2]
[340878425,1729998638944,-3378.7846262,0.00033918,2]
[340878427,1729998638960,-161.74604,0.00034045,2]
[340878429,1729998638971,-156.45012196,0.00034115,2]
[340878431,1729998638982,-400.0,0.00034215,2]
[340878433,1729998638992,-400.0,0.00034215,2]
[340878436,1729998639002,-5458.86974318,0.00034216,2]
[340878438,1729998639013,-161.74604,0.00034242,2]
[340878440,1729998639023,-161.74604,0.00034439,2]
[340878442,1729998639034,-161.74604,0.00034636,2]
[340878444,1729998639045,-320.85650229,0.00034743,2]
[340878447,1729998639061,-3000.62731861,0.00034743,2]
[340878449,1729998639072,-161.74604,0.00034833,2]
[340878451,1729998639083,-161.74604,0.00035031,2]
[340878453,1729998639094,-161.74604,0.00035228,2]
[340878455,1729998639103,-161.74604,0.00035425,2]
[340878457,1729998639114,-500.0,0.00035618,2]
[340878459,1729998639123,-500.0,0.00035618,2]
[340878461,1729998639133,-606.31,0.00035618,30]
[340878463,1729998639143,-4133.17669862,0.00035619,2]
[340878465,1729998639153,-161.74604,0.00035622,2]
[340878467,1729998639163,-15142.96840942,0.00035719,30]
[340878470,1729998639178,-34857.03159058,0.00035719,30]
[340878472,1729998639189,-200.0,0.00035719,14]
[340878474,1729998639199,-161.74604,0.00035819,2]
[340878476,1729998639210,-500.0,0.00035892,2]
[340878479,1729998639220,-606.31,0.00035892,30]
[340878481,1729998639230,-500.0,0.00036166,2]
[340878483,1729998639239,-606.31,0.00036166,30]
[340878485,1729998639249,-151.0,0.00036195,14]
[340878487,1729998639258,-789.714508,0.00036195,2]
[340878489,1729998639268,-151.0,0.00036267,14]
[340878491,1729998639278,-3018.67454396,0.00036283,2]
[340878493,1729998639288,-210.8195346,0.00036356,2]
[340878495,1729998639298,-210.8195346,0.00036356,2]
[340878497,1729998639308,-210.8195346,0.00036356,2]
[340878499,1729998639320,-210.8195346,0.00036356,2]
[340878502,1729998639334,-210.8195346,0.00036356,2]
[340878504,1729998639344,-210.8195346,0.00036356,2]
[340878506,1729998639356,-210.8195346,0.00036356,2]
[340878508,1729998639368,-210.8195346,0.00036356,2]
[340878510,1729998639377,-210.8195346,0.00036356,2]
[340878513,1729998639389,-210.8195346,0.00036356,2]
[340878515,1729998639398,-210.8195346,0.00036356,2]
[340878517,1729998639409,-210.8195346,0.00036356,2]
[340878519,1729998639419,-210.8195346,0.00036356,2]
[340878521,1729998639430,-210.8195346,0.00036356,2]
[340878523,1729998639441,-210.8195346,0.00036356,2]
[340878525,1729998639450,-1951.66,0.00036383,30]
[340878527,1729998639461,-500.0,0.00036383,30]
[340878529,1729998639471,-500.0,0.00036383,30]
[340878531,1729998639480,-500.0,0.00036383,30]
[340878533,1729998639491,-1229.96,0.00036383,30]
[340878535,1729998639501,-500.0,0.00036383,30]
[340878537,1729998639512,-881.5,0.00036383,30]
[340878539,1729998639522,-500.0,0.00036383,30]
[340878542,1729998639532,-500.0,0.00036383,30]
[340878544,1729998639542,-500.0,0.00036383,30]
[340878546,1729998639554,-500.0,0.00036383,30]
[340878549,1729998639569,-1284.7,0.00036383,30]
[340878551,1729998639581,-500.03930561,0.00036383,30]
[340878553,1729998639592,-1233.38,0.00036383,30]
[340878555,1729998639603,-1554.17,0.00036383,30]
[340878557,1729998639615,-500.0,0.00036383,30]
[340878560,1729998639627,-500.0,0.00036383,30]
[340878562,1729998639637,-500.0,0.00036383,30]
[340878563,1729998639648,-312.00162906,0.00036383,14]
[340878565,1729998639658,-151.0,0.00036384,14]
[340878567,1729998639669,-500.0,0.0003644,2]
[340878569,1729998639681,-606.31,0.0003644,30]
[340878571,1729998639690,-161.98837367,0.0003649,2]
[340878573,1729998639701,-500.0,0.00036499,30]
[340878574,1729998639712,-500.0,0.00036499,30]
[340878575,1729998639722,-500.0,0.00036499,30]
[340878576,1729998639732,-500.0,0.00036499,30]
[340878577,1729998639743,-500.0,0.00036499,30]
[340878578,1729998639754,-500.0,0.00036499,30]
[340878579,1729998639764,-4311.1,0.00036499,30]
[340878580,1729998639776,-500.0,0.00036499,30]
[340878581,1729998639787,-508.24,0.00036499,30]
[340878582,1729998639799,-500.0,0.00036499,30]
[340878583,1729998639809,-632.48360302,0.00036499,30]
[340878584,1729998639820,-500.0,0.00036499,30]
[340878585,1729998639832,-630.98,0.00036499,30]
[340878586,1729998639844,-500.0,0.00036499,30]
[340878587,1729998639854,-9490.01,0.00036499,30]
[340878588,1729998639869,-500.0,0.00036499,30]
[340878589,1729998639879,-500.0,0.00036499,30]
[340878590,1729998639891,-551.54763015,0.00036499,30]
[340878591,1729998639901,-1590.75,0.00036499,30]
[340878592,1729998639912,-500.0,0.00036499,30]
[340878593,1729998639924,-500.0,0.00036499,30]
[340878594,1729998639934,-500.0,0.00036499,30]
[340878595,1729998639945,-500.0,0.00036499,30]
[340878596,1729998639955,-1133.24,0.00036499,30]
[340878597,1729998639966,-500.0,0.00036499,30]
[340878599,1729998639976,-519.33046134,0.00036499,30]
[340878600,1729998639986,-833.93,0.00036499,30]
[340878601,1729998639997,-1716.18,0.00036499,30]
[340878602,1729998640008,-890.24,0.00036499,30]
[340878603,1729998640020,-1115.06,0.00036499,30]
[340878604,1729998640032,-500.0,0.00036499,30]
[340878605,1729998640043,-500.0,0.00036499,30]
[340878606,1729998640055,-500.0,0.00036499,30]
[340878607,1729998640066,-500.0,0.00036499,30]
[340878608,1729998640077,-500.0,0.00036499,30]
[340878609,1729998640088,-548.48,0.00036499,30]
[340878610,1729998640099,-500.0,0.00036499,30]
[340878611,1729998640108,-247.45521879,0.00036499,30]
[340878612,1729998640120,-993.82,0.00036499,30]
[340878613,1729998640131,-502.41410584,0.00036499,30]
[340878614,1729998640141,-500.0,0.00036499,30]
[340878615,1729998640151,-500.0,0.00036499,30]
[340878616,1729998640161,-500.0,0.00036499,30]
[340878617,1729998640174,-500.0,0.00036499,30]
[340878618,1729998640183,-565.17,0.00036499,30]
[340878619,1729998640193,-500.0,0.00036499,30]
[340878620,1729998640203,-500.0,0.00036499,30]
[340878621,1729998640213,-151.0,0.000365,14]
[340878622,1729998640224,-161.98837367,0.00036522,2]
[340878623,1729998640234,-710.56,0.00036579,3]
[340878624,1729998640244,-390.1,0.0003658,3]
[340878625,1729998640254,-473.7,0.0003658,3]
[340878626,1729998640264,-236.85,0.0003658,3]
[340878627,1729998640274,-500.0,0.00036589,15]
[340878628,1729998640284,-331.9318938,0.00036589,15]
[340878630,1729998640294,-471.24733465,0.00036589,15]
[340878631,1729998640306,-500.0,0.00036589,30]
[340878632,1729998640317,-1927.16,0.00036589,30]
[340878633,1729998640327,-762.54,0.00036589,30]
[340878634,1729998640338,-500.0,0.00036589,30]
[340878635,1729998640351,-572.75868174,0.00036589,30]
[340878636,1729998640361,-3237.8,0.00036589,30]
[340878637,1729998640372,-5208.15,0.00036589,30]
[340878638,1729998640382,-500.0,0.00036589,30]
[340878639,1729998640393,-1951.26,0.00036589,30]
[340878640,1729998640404,-2765.72,0.00036589,30]
[340878641,1729998640414,-702.31,0.00036589,30]